fUSD/lending_fUSD_20250519
["ID","MTS","AMOUNT","RATE_DAILY","PERIOD"]
[361634268,1747655444668,-420.0,0.00013698,2]
[361634270,1747655444677,-400.0,0.00013698,2]
[361634272,1747655444687,-992.78,0.00013698,2]
[361634274,1747655444697,-397.3076851,0.00013698,2]
[361634275,1747655444706,-420.0,0.00013698,2]
[361634277,1747655444716,-468.61,0.00013698,2]
[361634279,1747655444725,-420.0,0.00013698,2]
[361634281,1747655444734,-400.0,0.00013698,2]
[361634283,1747655444744,-530.04,0.00013698,2]
[361634285,1747655444753,-400.0,0.00013698,2]
[361634287,1747655444763,-420.0,0.00013698,2]
[361634289,1747655444773,-421.97,0.00013698,2]
[361634291,1747655444783,-151.0,0.00013698,2]
[361634293,1747655444792,-420.0,0.00013698,2]
[361634295,1747655444802,-151.0,0.00013698,2]
[361634297,1747655444813,-420.0,0.00013698,2]
[361634299,1747655444822,-420.0,0.00013698,2]
[361634301,1747655444832,-577.85,0.00013698,2]
[361634303,1747655444842,-512.80235858,0.00013698,2]
[361634305,1747655444852,-632.01,0.00013698,2]
[361634307,1747655444861,-400.81303816,0.00013698,2]
[361634309,1747655444871,-151.0,0.00013698,2]
[361634311,1747655444880,-420.0,0.00013698,2]
[361634313,1747655444889,-151.0,0.00013698,2]
[361634315,1747655444898,-400.0,0.00013698,2]
[361634317,1747655444908,-423.69,0.00013698,2]
[361634319,1747655444917,-401.51240966,0.00013698,2]
[361634321,1747655444926,-400.0,0.00013698,2]
[361634323,1747655444936,-420.0,0.00013698,2]
[361634325,1747655444945,-400.0,0.00013698,2]
[361634326,1747655444954,-400.0,0.00013698,2]
[361634328,1747655444963,-400.0,0.00013698,2]
[361634330,1747655444972,-420.0,0.00013698,2]
[361634332,1747655444982,-400.0,0.00013698,2]
[361634334,1747655444992,-941.55,0.00013698,2]
[361634336,1747655445001,-672.62,0.00013698,2]
[361634338,1747655445010,-421.28,0.00013698,2]
[361634340,1747655445021,-400.0,0.00013698,2]
[361634342,1747655445030,-420.0,0.00013698,2]
[361634344,1747655445039,-420.0,0.00013698,2]
[361634346,1747655445048,-809.47,0.00013698,2]
[361634348,1747655445058,-420.0,0.00013698,2]
[361634350,1747655445067,-484.01,0.00013698,2]
[361634352,1747655445076,-420.0,0.00013698,2]
[361634353,1747655445086,-420.0,0.00013698,2]
[361634354,1747655445095,-420.0,0.00013698,2]
[361634355,1747655445104,-840.87,0.00013698,2]
[361634356,1747655445113,-400.44379662,0.00013698,2]
[361634357,1747655445123,-420.0,0.00013698,2]
[361634358,1747655445133,-420.0,0.00013698,2]
[361634359,1747655445143,-420.0,0.00013698,2]
[361634360,1747655445152,-151.0,0.00013698,2]
[361634361,1747655445161,-152.287236,0.00013698,2]
[361634362,1747655445170,-151.0,0.00013698,2]
[361634363,1747655445179,-420.0,0.00013698,2]
[361634364,1747655445188,-151.0,0.00013698,2]
[361634365,1747655445198,-733.11,0.00013698,2]
[361634366,1747655445207,-332.39,0.00013698,2]
[361634367,1747655445216,-1210.75,0.00013698,2]
[361634368,1747655445226,-1062.72,0.00013698,2]
[361634369,1747655445235,-400.0,0.00013698,2]
[361634370,1747655445244,-509.88,0.00013698,2]
[361634371,1747655445254,-531.69,0.00013698,2]
[361634372,1747655445262,-400.0,0.00013698,2]
[361634373,1747655445272,-400.0,0.00013698,2]
[361634374,1747655445281,-151.0,0.00013698,2]
[361634375,1747655445290,-400.0,0.00013698,2]
[361634376,1747655445299,-151.0,0.00013698,2]
[361634377,1747655445308,-400.0,0.00013698,2]
[361634378,1747655445317,-420.0,0.00013698,2]
[361634379,1747655445326,-403.02918649,0.00013698,2]
[361634380,1747655445336,-420.0,0.00013698,2]
[361634381,1747655445345,-420.0,0.00013698,2]
[361634382,1747655445354,-420.0,0.00013698,2]
[361634383,1747655445363,-420.0,0.00013698,2]
[361634384,1747655445372,-422.19,0.00013698,2]
[361634385,1747655445381,-420.0,0.00013698,2]
[361634387,1747655445390,-400.0,0.00013698,2]
[361634388,1747655445399,-420.0,0.00013698,2]
[361634389,1747655445409,-400.0,0.00013698,2]
[361634390,1747655445418,-400.0,0.00013698,2]
[361634391,1747655445427,-504.81,0.00013698,2]
[361634392,1747655445436,-420.0,0.00013698,2]
[361634393,1747655445445,-420.0,0.00013698,2]
[361634394,1747655445455,-510.86,0.00013698,2]
[361634395,1747655445463,-805.93,0.00013698,2]
[361634396,1747655445473,-400.0,0.00013698,2]
[361634397,1747655445482,-420.0,0.00013698,2]
[361634398,1747655445491,-641.21,0.00013698,2]
[361634399,1747655445500,-420.0,0.00013698,2]
[361634400,1747655445509,-420.0,0.00013698,2]
[361634401,1747655445518,-420.0,0.00013698,2]
[361634402,1747655445528,-151.0,0.00013698,2]
[361634403,1747655445536,-151.0,0.00013698,2]
[361634404,1747655445546,-527.63,0.00013698,2]
[361634405,1747655445556,-525.720625,0.00013698,2]
[361634406,1747655445565,-400.0,0.00013698,2]
[361634407,1747655445578,-151.0,0.00013698,2]
[361634408,1747655445587,-735.25,0.00013698,2]
[361634409,1747655445596,-151.0,0.00013698,2]
[361634410,1747655445606,-400.0,0.00013698,2]
[361634411,1747655445615,-449.08,0.00013698,2]
[361634412,1747655445624,-420.0,0.00013698,2]
[361634413,1747655445634,-621.05,0.00013698,2]
[361634414,1747655445644,-400.0,0.00013698,2]
[361634415,1747655445657,-400.0,0.00013698,2]
[361634416,1747655445666,-400.0,0.00013698,2]
[361634417,1747655445676,-497.81,0.00013698,2]
[361634418,1747655445685,-420.0,0.00013698,2]
[361634419,1747655445696,-420.0,0.00013698,2]
[361634420,1747655445706,-400.0,0.00013698,2]
[361634421,1747655445715,-151.0,0.00013698,2]
[361634422,1747655445724,-420.0,0.00013698,2]
[361634423,1747655445735,-151.0,0.00013698,2]
[361634424,1747655445745,-151.0,0.00013698,2]
[361634425,1747655445756,-151.0,0.00013698,2]
[361634426,1747655445765,-420.0,0.00013698,2]
[361634427,1747655445775,-420.0,0.00013698,2]
[361634428,1747655445785,-400.0,0.00013698,2]
[361634429,1747655445796,-151.0,0.00013698,2]
[361634430,1747655445807,-400.0,0.00013698,2]
[361634431,1747655445816,-250.454788,0.00013698,2]
[361634432,1747655445825,-879.55,0.00013698,2]
[361634433,1747655445835,-400.0,0.00013698,2]
[361634434,1747655445843,-400.0,0.00013698,2]
[361634435,1747655445853,-420.0,0.00013698,2]
[361634436,1747655445862,-420.0,0.00013698,2]
[361634437,1747655445872,-400.0,0.00013698,2]
[361634438,1747655445881,-551.09,0.00013698,2]
[361634439,1747655445890,-420.0,0.00013698,2]
[361634440,1747655445899,-400.50327757,0.00013698,2]
[361634441,1747655445909,-400.0,0.00013698,2]
[361634442,1747655445919,-1947.191811,0.00013698,2]
[361634443,1747655445931,-401.55053894,0.00013698,2]
[361634444,1747655445942,-400.0,0.00013698,2]
[361634445,1747655445953,-1947.191811,0.00013698,2]
[361634446,1747655445964,-500.0,0.00013698,2]
[361634470,1747655446218,-500.0,0.00013698,2]
[361634472,1747655446228,-527.04,0.00013698,2]
[361634474,1747655446237,-420.0,0.00013698,2]
[361634477,1747655446246,-500.0,0.00013698,2]
[361634479,1747655446256,-500.0,0.00013698,2]
[361634481,1747655446265,-500.0,0.00013698,2]
[361634483,1747655446274,-420.0,0.00013698,2]
[361634485,1747655446283,-500.0,0.00013698,2]
[361634487,1747655446293,-400.0,0.00013698,2]
[361634489,1747655446304,-887.77,0.00013698,2]
[361634491,1747655446313,-152.359402,0.00013698,2]
[361634493,1747655446323,-660.67,0.00013698,2]
[361634495,1747655446333,-420.0,0.00013698,2]
[361634497,1747655446342,-400.0,0.00013698,2]
[361634499,1747655446351,-420.0,0.00013698,2]
[361634501,1747655446361,-205.6193158,0.00013698,2]
[361634503,1747655446371,-523.91,0.00013698,2]
[361634505,1747655446380,-400.0,0.00013698,2]
[361634507,1747655446390,-400.0,0.00013698,2]
[361634509,1747655446399,-473.54,0.00013698,2]
[361634511,1747655446408,-400.0,0.00013698,2]
[361634513,1747655446417,-400.0,0.00013698,2]
[361634515,1747655446426,-420.0,0.00013698,2]
[361634517,1747655446436,-420.0,0.00013698,2]
[361634519,1747655446445,-400.44629193,0.00013698,2]
[361634521,1747655446455,-443.91,0.00013698,2]
[361634523,1747655446466,-400.0,0.00013698,2]
[361634525,1747655446475,-171.43815895,0.00013698,2]
[361634527,1747655446485,-151.0,0.00013698,2]
[361634529,1747655446495,-151.0,0.00013698,2]
[361634531,1747655446505,-848.47,0.00013698,2]
[361634533,1747655446514,-151.0,0.00013698,2]
[361634535,1747655446524,-482.76,0.00013698,2]
[361634537,1747655446533,-420.0,0.00013698,2]
[361634539,1747655446543,-350.80652056,0.00013698,2]
[361634541,1747655446552,-420.0,0.00013698,2]
[361634543,1747655446562,-1057.49,0.00013698,2]
[361634545,1747655446572,-567.22,0.00013698,2]
[361634547,1747655446584,-400.0,0.00013698,2]
[361634549,1747655446594,-420.0,0.00013698,2]
[361634551,1747655446603,-400.0,0.00013698,2]
[361634553,1747655446613,-420.0,0.00013698,2]
[361634555,1747655446623,-400.0,0.00013698,2]
[361634557,1747655446633,-420.0,0.00013698,2]
[361634559,1747655446642,-179.092564,0.00013698,2]
[361634561,1747655446652,-179.092564,0.00013698,2]
[361634563,1747655446662,-400.0,0.00013698,2]
[361634565,1747655446671,-420.0,0.00013698,2]
[361634567,1747655446681,-400.0,0.00013698,2]
[361634569,1747655446690,-400.0,0.00013698,2]
[361634571,1747655446699,-472.109668,0.00013698,2]
[361634573,1747655446708,-179.092564,0.00013698,2]
[361634575,1747655446718,-179.092564,0.00013698,2]
[361634577,1747655446727,-400.0,0.00013698,2]
[361634579,1747655446736,-420.0,0.00013698,2]
[361634581,1747655446746,-420.0,0.00013698,2]
[361634583,1747655446757,-420.0,0.00013698,2]
[361634585,1747655446767,-420.0,0.00013698,2]
[361634587,1747655446776,-151.0,0.00013698,2]
[361634589,1747655446786,-420.0,0.00013698,2]
[361634591,1747655446795,-151.0,0.00013698,2]
[361634593,1747655446805,-472.109668,0.00013698,2]
[361634596,1747655446814,-472.109668,0.00013698,2]
[361634597,1747655446824,-151.0,0.00013698,2]
[361634599,1747655446833,-400.0,0.00013698,2]
[361634601,1747655446843,-400.0,0.00013698,2]
[361634604,1747655446852,-472.109668,0.00013698,2]
[361634606,1747655446861,-447.13,0.00013698,2]
[361634608,1747655446871,-1728.12,0.00013698,2]
[361634609,1747655446883,-155.347322,0.00013698,2]
[361634612,1747655446894,-400.0,0.00013698,2]
[361634614,1747655446905,-500.0,0.00013698,2]
[361634616,1747655446915,-443.58,0.00013698,2]
[361634618,1747655446924,-420.0,0.00013698,2]
[361634620,1747655446935,-500.0,0.00013698,2]
[361634622,1747655446944,-500.0,0.00013698,2]
[361634624,1747655446953,-500.0,0.00013698,2]
[361634626,1747655446962,-500.0,0.00013698,2]
[361634628,1747655446971,-500.0,0.00013698,2]
[361634630,1747655446980,-627.4,0.00013698,2]
[361634631,1747655446990,-420.0,0.00013698,2]
[361634632,1747655446999,-400.0,0.00013698,2]
[361634633,1747655447008,-400.0,0.00013698,2]
[361634634,1747655447017,-543.46590694,0.00013698,2]
[361634635,1747655447027,-842.58,0.00013698,2]
[361634636,1747655447036,-626.09,0.00013698,2]
[361634637,1747655447045,-420.0,0.00013698,2]
[361634638,1747655447054,-420.0,0.00013698,2]
[361634639,1747655447064,-555.03,0.00013698,2]
[361634640,1747655447073,-450.4,0.00013698,2]
[361634642,1747655447083,-420.0,0.00013698,2]
[361634644,1747655447092,-151.0,0.00013698,2]
[361634646,1747655447101,-151.0,0.00013698,2]
[361634648,1747655447110,-565.3,0.00013698,2]
[361634650,1747655447120,-153.313977,0.00013698,2]
[361634652,1747655447128,-250.361965,0.00013698,2]
[361634654,1747655447138,-151.0,0.00013698,2]
[361634656,1747655447147,-420.0,0.00013698,2]
[361634658,1747655447157,-151.0,0.00013698,2]
[361634660,1747655447167,-151.0,0.00013698,2]
[361634662,1747655447176,-420.0,0.00013698,2]
[361634664,1747655447185,-401.06572667,0.00013698,2]
[361634666,1747655447194,-824.27,0.00013698,2]
[361634668,1747655447203,-420.0,0.00013698,2]
[361634670,1747655447213,-401.87228994,0.00013698,2]
[361634672,1747655447222,-862.11,0.00013698,2]
[361634674,1747655447231,-400.0,0.00013698,2]
[361634676,1747655447242,-557.47,0.00013698,2]
[361634678,1747655447251,-798.06,0.00013698,2]
[361634680,1747655447261,-420.0,0.00013698,2]
[361634682,1747655447269,-420.0,0.00013698,2]
[361634684,1747655447280,-420.0,0.00013698,2]
[361634686,1747655447290,-407.95,0.00013698,2]
[361634688,1747655447299,-400.0,0.00013698,2]
[361634690,1747655447308,-420.0,0.00013698,2]
[361634692,1747655447318,-420.0,0.00013698,2]
[361634694,1747655447327,-327.38866922,0.00013698,2]
[361634696,1747655447337,-420.0,0.00013698,2]
[361634698,1747655447347,-151.0,0.00013698,2]
[361634700,1747655447361,-262.214402,0.00013698,2]
[361634702,1747655447380,-628.3,0.00013698,2]
[361634704,1747655447393,-320.0,0.00013698,2]
[361634706,1747655447402,-420.0,0.00013698,2]
[361634708,1747655447412,-420.0,0.00013698,2]
[361634710,1747655447421,-681.03,0.00013698,2]
[361634712,1747655447430,-6756.812968,0.00013698,2]
[361634714,1747655447439,-151.0,0.00013698,2]
[361634716,1747655447449,-6756.812968,0.00013698,2]
[361634718,1747655447458,-151.0,0.00013698,2]
[361634720,1747655447467,-6756.812968,0.00013698,2]
[361634722,1747655447476,-151.0,0.00013698,2]
[361634724,1747655447485,-420.0,0.00013698,2]
[361634726,1747655447494,-6756.812968,0.00013698,2]
[361634728,1747655447504,-732.91,0.00013698,2]
[361634730,1747655447513,-6756.812968,0.00013698,2]
[361634732,1747655447522,-6756.812968,0.00013698,2]
[361634734,1747655447532,-420.0,0.00013698,2]
[361634736,1747655447541,-400.0,0.00013698,2]
[361634738,1747655447551,-507.99,0.00013698,2]
[361634740,1747655447561,-611.9,0.00013698,2]
[361634742,1747655447570,-400.0,0.00013698,2]
[361634744,1747655447583,-400.68333854,0.00013698,2]
[361634746,1747655447592,-420.0,0.00013698,2]
[361634748,1747655447601,-151.0,0.00013698,2]
[361634750,1747655447610,-151.0,0.00013698,2]
[361634752,1747655447621,-151.0,0.00013698,2]
[361634754,1747655447630,-400.0,0.00013698,2]
[361634756,1747655447639,-664.65,0.00013698,2]
[361634758,1747655447649,-420.0,0.00013698,2]
[361634760,1747655447660,-483.91,0.00013698,2]
[361634762,1747655447670,-420.0,0.00013698,2]
[361634764,1747655447679,-420.0,0.00013698,2]
[361634766,1747655447688,-2000.0,0.00013698,2]
[361634768,1747655447698,-420.0,0.00013698,2]
[361634770,1747655447707,-420.0,0.00013698,2]
[361634772,1747655447717,-151.0,0.00013698,2]
[361634774,1747655447727,-151.0,0.00013698,2]
[361634776,1747655447736,-400.0,0.00013698,2]
[361634778,1747655447746,-151.0,0.00013698,2]
[361634780,1747655447755,-420.0,0.00013698,2]
[361634782,1747655447765,-401.32276397,0.00013698,2]
[361634784,1747655447775,-400.0,0.00013698,2]
[361634787,1747655447784,-420.0,0.00013698,2]
[361634788,1747655447794,-420.0,0.00013698,2]
[361634790,1747655447804,-150.896541,0.00013698,2]
[361634792,1747655447813,-401.85573737,0.00013698,2]
[361634795,1747655447824,-208.0,0.00013698,2]
[361634796,1747655447833,-500.0,0.00013698,2]
[361634799,1747655447843,-400.0,0.00013698,2]
[361634800,1747655447852,-420.0,0.00013698,2]
[361634803,1747655447862,-420.0,0.00013698,2]
[361634805,1747655447872,-400.99495962,0.00013698,2]
[361634807,1747655447882,-741.78,0.00013698,2]
[361634809,1747655447891,-156.01,0.00013698,2]
[361634811,1747655447901,-400.0,0.00013698,2]
[361634813,1747655447911,-420.0,0.00013698,2]
[361634815,1747655447921,-570.88,0.00013698,2]
[361634817,1747655447930,-151.0,0.00013698,2]
[361634819,1747655447941,-420.0,0.00013698,2]
[361634821,1747655447950,-151.0,0.00013698,2]
[361634823,1747655447959,-401.62317872,0.00013698,2]
[361634825,1747655447969,-400.0,0.00013698,2]
[361634827,1747655447979,-151.0,0.00013698,2]
[361634829,1747655447988,-151.0,0.00013698,2]
[361634831,1747655447997,-420.0,0.00013698,2]
[361634833,1747655448006,-171.844681,0.00013698,2]
[361634835,1747655448016,-400.15332626,0.00013698,2]
[361634837,1747655448025,-311.90367351,0.00013698,2]
[361634839,1747655448034,-420.0,0.00013698,2]
[361634841,1747655448044,-420.0,0.00013698,2]
[361634843,1747655448053,-151.0,0.00013698,2]
[361634845,1747655448063,-400.0,0.00013698,2]
[361634847,1747655448072,-151.0,0.00013698,2]
[361634849,1747655448081,-211.7,0.00013698,2]
[361634851,1747655448091,-775.54,0.00013698,2]
[361634853,1747655448100,-269.113465,0.00013698,2]
[361634855,1747655448110,-420.0,0.00013698,2]
[361634857,1747655448120,-420.0,0.00013698,2]
[361634859,1747655448129,-500.0,0.00013698,2]
[361634861,1747655448139,-500.0,0.00013698,2]
[361634863,1747655448148,-558.53476634,0.00013698,2]
[361634865,1747655448158,-887.56,0.00013698,2]
[361634867,1747655448168,-545.90206874,0.00013698,2]
[361634869,1747655448177,-400.0,0.00013698,2]
[361634871,1747655448186,-420.0,0.00013698,2]
[361634873,1747655448196,-400.0,0.00013698,2]
[361634875,1747655448205,-400.0,0.00013698,2]
[361634877,1747655448215,-420.0,0.00013698,2]
[361634879,1747655448224,-400.0,0.00013698,2]
[361634881,1747655448234,-420.0,0.00013698,2]
[361634883,1747655448244,-400.0,0.00013698,2]
[361634886,1747655448254,-151.0,0.00013698,2]
[361634888,1747655448263,-420.0,0.00013698,2]
[361634890,1747655448273,-151.0,0.00013698,2]
[361634892,1747655448282,-151.0,0.00013698,2]
[361634894,1747655448291,-498.98409671,0.00013698,2]
[361634896,1747655448301,-400.0,0.00013698,2]
[361634898,1747655448311,-420.0,0.00013698,2]
[361634900,1747655448320,-400.0,0.00013698,2]
[361634902,1747655448330,-400.0,0.00013698,2]
[361634904,1747655448339,-420.0,0.00013698,2]
[361634906,1747655448348,-257.466291,0.00013698,2]
[361634908,1747655448357,-151.0,0.00013698,2]
[361634910,1747655448366,-681.71,0.00013698,2]
[361634911,1747655448375,-151.0,0.00013698,2]
[361634913,1747655448385,-226.35594286,0.00013698,2]
[361634916,1747655448395,-420.0,0.00013698,2]
[361634918,1747655448404,-400.0,0.00013698,2]
[361634920,1747655448413,-420.0,0.00013698,2]
[361634922,1747655448424,-400.0,0.00013698,2]
[361634924,1747655448434,-420.0,0.00013698,2]
[361634925,1747655448443,-351.63169608,0.00013698,2]
[361634928,1747655448453,-401.9694287,0.00013698,2]
[361634929,1747655448462,-400.0,0.00013698,2]
[361634931,1747655448472,-420.0,0.00013698,2]
[361634933,1747655448482,-935.95,0.00013698,2]
[361634935,1747655448491,-420.0,0.00013698,2]
[361634938,1747655448501,-420.0,0.00013698,2]
[361634940,1747655448511,-694.23,0.00013698,2]
[361634942,1747655448521,-470.96,0.00013698,2]
[361634944,1747655448531,-401.48216303,0.00013698,2]
[361634955,1747655448630,-420.0,0.00013698,2]
[361634957,1747655448640,-370.1201983,0.00013698,2]
[361634959,1747655448650,-400.0,0.00013698,2]
[361634961,1747655448659,-420.0,0.00013698,2]
[361634963,1747655448670,-151.0,0.00013698,2]
[361634965,1747655448679,-153.528363,0.00013698,2]
[361634967,1747655448688,-420.0,0.00013698,2]
[361634968,1747655448698,-402.62811214,0.00013698,2]
[361634971,1747655448707,-400.0,0.00013698,2]
[361634973,1747655448717,-420.0,0.00013698,2]
[361634975,1747655448726,-400.0,0.00013698,2]
[361634976,1747655448736,-387.1666385,0.00013698,2]
[361634978,1747655448746,-400.0,0.00013698,2]
[361634980,1747655448755,-400.0,0.00013698,2]
[361634982,1747655448764,-481.19,0.00013698,2]
[361634984,1747655448774,-420.0,0.00013698,2]
[361634986,1747655448784,-400.0,0.00013698,2]
[361634988,1747655448793,-400.0,0.00013698,2]
[361634990,1747655448803,-400.0,0.00013698,2]
[361634991,1747655448813,-400.0,0.00013698,2]
[361634992,1747655448823,-401.09469543,0.00013698,2]
[361634993,1747655448832,-400.0,0.00013698,2]
[361634994,1747655448842,-420.0,0.00013698,2]
[361634995,1747655448852,-402.90404323,0.00013698,2]
[361634996,1747655448861,-400.0,0.00013698,2]
[361634997,1747655448870,-420.0,0.00013698,2]
[361634998,1747655448880,-400.0,0.00013698,2]
[361634999,1747655448889,-420.0,0.00013698,2]
[361635001,1747655448899,-396.69393805,0.00013698,2]
[361635003,1747655448908,-593.03,0.00013698,2]
[361635005,1747655448917,-420.0,0.00013698,2]
[361635007,1747655448926,-420.0,0.00013698,2]
[361635009,1747655448935,-420.0,0.00013698,2]
[361635011,1747655448944,-428.18,0.00013698,2]
[361635013,1747655448953,-6350.29,0.00013698,2]
[361635015,1747655448963,-347.37783078,0.00013698,2]
[361635017,1747655448972,-400.0,0.00013698,2]
[361635019,1747655448981,-420.0,0.00013698,2]
[361635021,1747655448990,-420.0,0.00013698,2]
[361635023,1747655448999,-420.0,0.00013698,2]
[361635025,1747655449008,-420.0,0.00013698,2]
[361635027,1747655449017,-420.0,0.00013698,2]
[361635029,1747655449026,-420.0,0.00013698,2]
[361635031,1747655449035,-366.88096896,0.00013698,2]
[361635033,1747655449044,-400.0,0.00013698,2]
[361635035,1747655449053,-452.05,0.00013698,2]
[361635037,1747655449063,-1670.28,0.00013698,2]
[361635039,1747655449072,-420.0,0.00013698,2]
[361635041,1747655449081,-420.0,0.00013698,2]
[361635043,1747655449090,-420.0,0.00013698,2]
[361635045,1747655449099,-420.0,0.00013698,2]
[361635047,1747655449108,-151.0,0.00013698,2]
[361635049,1747655449118,-151.0,0.00013698,2]
[361635051,1747655449127,-151.0,0.00013698,2]
[361635053,1747655449136,-420.0,0.00013698,2]
[361635055,1747655449145,-420.0,0.00013698,2]
[361635056,1747655449154,-420.0,0.00013698,2]
[361635058,1747655449164,-420.0,0.00013698,2]
[361635060,1747655449173,-492.65,0.00013698,2]
[361635062,1747655449182,-151.0,0.00013698,2]
[361635064,1747655449191,-151.0,0.00013698,2]
[361635066,1747655449201,-400.0,0.00013698,2]
[361635068,1747655449211,-151.0,0.00013698,2]
[361635070,1747655449220,-400.0,0.00013698,2]
[361635073,1747655449261,-420.0,0.00013698,2]
[361635075,1747655449270,-401.44282912,0.00013698,2]
[361635077,1747655449279,-400.0,0.00013698,2]
[361635079,1747655449288,-450.55,0.00013698,2]
[361635080,1747655449297,-420.0,0.00013698,2]
[361635082,1747655449307,-2128.7,0.00013698,2]
[361635084,1747655449316,-400.0,0.00013698,2]
[361635086,1747655449326,-417.38,0.00013698,2]
[361635088,1747655449335,-400.0,0.00013698,2]
[361635090,1747655449344,-400.10176362,0.00013698,2]
[361635092,1747655449353,-875.27,0.00013698,2]
[361635094,1747655449363,-1097.81,0.00013698,2]
[361635096,1747655449372,-400.0,0.00013698,2]
[361635098,1747655449381,-400.0,0.00013698,2]
[361635100,1747655449390,-400.0,0.00013698,2]
[361635102,1747655449399,-151.0,0.00013698,2]
[361635104,1747655449408,-964.03,0.00013698,2]
[361635106,1747655449417,-420.0,0.00013698,2]
[361635108,1747655449426,-151.0,0.00013698,2]
[361635110,1747655449435,-420.0,0.00013698,2]
[361635112,1747655449445,-203.96365678,0.00013698,2]
[361635114,1747655449454,-400.0,0.00013698,2]
[361635116,1747655449464,-747.29,0.00013698,2]
[361635118,1747655449474,-151.0,0.00013698,2]
[361635120,1747655449484,-151.0,0.00013698,2]
[361635122,1747655449494,-400.0,0.00013698,2]
[361635124,1747655449504,-508.42,0.00013698,2]
[361635126,1747655449513,-151.0,0.00013698,2]
[361635128,1747655449522,-420.0,0.00013698,2]
[361635130,1747655449531,-420.0,0.00013698,2]
[361635132,1747655449540,-400.0,0.00013698,2]
[361635134,1747655449549,-151.0,0.00013698,2]
[361635136,1747655449559,-420.0,0.00013698,2]
[361635138,1747655449568,-151.0,0.00013698,2]
[361635140,1747655449581,-400.0,0.00013698,2]
[361635142,1747655449591,-151.0,0.00013698,2]
[361635144,1747655449600,-400.0,0.00013698,2]
[361635146,1747655449609,-400.0,0.00013698,2]
[361635148,1747655449619,-500.0,0.00013698,2]
[361635150,1747655449628,-500.0,0.00013698,2]
[361635152,1747655449638,-500.0,0.00013698,2]
[361635154,1747655449646,-500.0,0.00013698,2]
[361635156,1747655449656,-420.0,0.00013698,2]
[361635158,1747655449667,-151.0,0.00013698,2]
[361635160,1747655449676,-400.1058444,0.00013698,2]
[361635162,1747655449685,-151.0,0.00013698,2]
[361635164,1747655449695,-420.0,0.00013698,2]
[361635166,1747655449704,-720.17,0.00013698,2]
[361635168,1747655449713,-151.0,0.00013698,2]
[361635170,1747655449722,-420.0,0.00013698,2]
[361635172,1747655449732,-400.0,0.00013698,2]
[361635174,1747655449741,-400.0,0.00013698,2]
[361635176,1747655449750,-714.86,0.00013698,2]
[361635178,1747655449760,-400.0,0.00013698,2]
[361635180,1747655449769,-420.0,0.00013698,2]
[361635182,1747655449779,-909.4,0.00013698,2]
[361635184,1747655449788,-250.0,0.00013698,2]
[361635186,1747655449798,-420.0,0.00013698,2]